[Event "36th Indian-ch U13 Open 2023"]
[Site "Secunderabad"]
[Date "2023.12.08"]
[Round "8.2"]
[White "Mrinmoy Rajkhowa"]
[Black "Adharsh K"]
[Result "1/2-1/2"]
[ECO "B30"]
[WhiteElo "1840"]
[BlackElo "1831"]
[Annotator "NA RC"]
[PlyCount "97"]
[EventDate "2023.12.04"]
[EventType "swiss"]
[EventCountry "IND"]
[SourceTitle "playchess.com"]
[Source "ChessBase"]
[SourceQuality "1"]
[TimeControl "5400+30"]

1. e4 {[%emt 0:00:04]} c5 {[%emt 0:00:06]} 2. Nf3 {[%emt 0:00:05]} Nc6 {[%emt 0:00:35]} 3. Bc4 {[%emt 0:00:05]} e6 {[%emt 0:00:04]} 4. O-O {[%emt 0:00:10]} d5 {[%emt 0:00:04]} 5. Bb5 {[%emt 0:00:03]} dxe4 {[%emt 0:00:24]} 6. Ne5 {[%emt 0:00:04]} Qc7 {[%emt 0:00:06]} 7. Nxc6 {[%emt 0:00:07]} bxc6 {[%emt 0:00:12]} 8. Bc4 {[%emt 0:00:04]} Bd6 {[%emt 0:00:46]} 9. Nc3 {[%emt 0:00:05]} Nf6 {[%emt 0:10:47]} 10. h3 {[%emt 0:00:08]} Bh2+ {[%emt 0:01:39]} 11. Kh1 {[%emt 0:00:07]} Be5 {[%emt 0:00:03]} 12. Qe2 {[%emt 0:12:38]} O-O {[%emt 0:20:29]} 13. Nxe4 {[%emt 0:01:42]} Nxe4 {[%emt 0:01:43]} 14. Qxe4 {[%emt 0:00:06]} f5 {[%emt 0:02:11]} 15. Qe2 {[%emt 0:16:10]} Kh8 {[%emt 0:00:30]} 16. d3 {[%emt 0:02:27]} Bf6 {[%emt 0:00:25]} 17. Rb1 {[%emt 0:05:08]} e5 {[%emt 0:01:02]} 18. f4 {[%emt 0:05:42]} Re8 {[%emt 0:06:04]} 19. Qf2 {[%emt 0:09:40]} e4 {[%emt 0:09:00]} 20. Qxc5 {[%emt 0:11:25]} Qb6 {[%emt 0:00:16]} 21. Be3 {[%emt 0:05:40]} Be6 {[%emt 0:05:05]} 22. Bxe6 {[%emt 0:03:12]} Qxc5 {[%emt 0:00:04]} 23. Bxc5 {[%emt 0:00:06]} Rxe6 {[%emt 0:00:04]} 24. d4 {[%emt 0:07:01]} Bh4 {[%emt 0:06:53]} 25. Kh2 {[%emt 0:02:18]} Rg6 {[%emt 0:00:07]} 26. g4 {[%emt 0:11:30]} fxg4 {[%emt 0:01:14]} 27. f5 {[%emt 0:00:28]} Rh6 {[%emt 0:00:46]} 28. d5 {[%emt 0:05:01]} cxd5 {[%emt 0:01:45]} 29. Rfd1 {[%emt 0:01:14] [#]} ({White should try} 29. Be3 $1 $15 g3+ 30. Kg2) 29... Rd8 {[%emt 0:01:31]} ({Black should try} 29... Bf6 $1 $17 30. Kg3 Rxh3+ 31. Kxg4 Rh2) 30. Be3 {[%emt 0:00:28]} Rc6 {[%emt 0:00:16]} 31. c3 {[%emt 0:00:11]} gxh3 {[%emt 0:00:33]} 32. Kxh3 {[%emt 0:00:14]} Bf6 {[%emt 0:00:04]} 33. Bxa7 {[%emt 0:00:17]} Ra6 {[%emt 0:00:31]} 34. Bd4 {[%emt 0:00:19]} Rxa2 {[%emt 0:00:56]} 35. Bxf6 {[%emt 0:00:18]} gxf6 {[%emt 0:00:05]} 36. Kg4 {[%emt 0:00:25]} Ra7 {[%emt 0:00:28]} 37. Kf4 {[%emt 0:01:09]} Re7 {[%emt 0:00:43]} 38. Rd4 {[%emt 0:00:19]} Ree8 {[%emt 0:09:23]} 39. Rbd1 {[%emt 0:01:01]} e3 {[%emt 0:01:46]} 40. Re1 {[%emt 0:00:24]} e2 {[%emt 0:00:11]} 41. Kf3 {[%emt 0:01:19]} Re5 {[%emt 0:00:12]} 42. Rxe2 {[%emt 0:00:13]} Rxf5+ {[%emt 0:00:04]} 43. Kg4 {[%emt 0:00:21]} Rf1 {[%emt 0:00:55]} 44. Kh3 {[%emt 0:01:28]} Rg1 {[%emt 0:02:41]} 45. c4 {[%emt 0:00:42]} Rdg8 {[%emt 0:00:20]} 46. Rxd5 {[%emt 0:01:08]} R1g3+ {[%emt 0:00:10]} 47. Kh2 {[%emt 0:00:17]} R3g4 {[%emt 0:00:05]} 48. Rh5 {[%emt 0:00:35]} Rxc4 {[%emt 0:00:18]} 49. Re7 $11 {[%emt 0:00:48]} 1/2-1/2

[Event "36th Indian-ch U13 Open 2023"]
[Site "Secunderabad"]
[Date "2023.12.08"]
[Round "8.3"]
[White "Venkat, Raghav"]
[Black "Banik Hrishikesh Kumar"]
[Result "1-0"]
[ECO "C54"]
[WhiteElo "2205"]
[BlackElo "1627"]
[Annotator "RC"]
[PlyCount "199"]
[EventDate "2023.12.04"]
[EventType "swiss"]
[EventCountry "IND"]
[SourceTitle "playchess.com"]
[Source "ChessBase"]
[SourceQuality "1"]
[TimeControl "5400+30"]

1. e4 {[%emt 0:00:16]} e5 {[%emt 0:00:15]} 2. Nf3 {[%emt 0:00:05]} Nc6 {[%emt 0:00:09]} 3. Bc4 {[%emt 0:00:05]} Bc5 {[%emt 0:00:10]} 4. c3 {[%emt 0:00:09]} Nf6 {[%emt 0:00:28]} 5. d3 {[%emt 0:00:05]} d6 {[%emt 0:00:09]} 6. O-O {[%emt 0:00:07]} O-O {[%emt 0:00:07]} 7. Re1 {[%emt 0:00:34]} a5 {[%emt 0:01:06]} 8. h3 {[%emt 0:00:06]} Be6 {[%emt 0:00:11]} 9. Bb5 {[%emt 0:01:30]} Ba7 {[%emt 0:00:10]} 10. Nbd2 {[%emt 0:09:02]} Ne7 {[%emt 0:00:12]} 11. Nf1 {[%emt 0:00:48]} Ng6 {[%emt 0:01:58]} 12. Ng3 {[%emt 0:00:45]} c6 {[%emt 0:09:35]} 13. Ba4 {[%emt 0:00:05]} d5 {[%emt 0:02:27]} 14. exd5 {[%emt 0:02:36]} Nxd5 {[%emt 0:01:15]} 15. Bc2 {[%emt 0:05:12]} Re8 {[%emt 0:06:10]} 16. d4 {[%emt 0:10:06]} exd4 {[%emt 0:04:01]} 17. Nxd4 {[%emt 0:02:37]} Bd7 {[%emt 0:01:20]} 18. Rxe8+ {[%emt 0:05:09]} Qxe8 {[%emt 0:00:52]} 19. Bd2 {[%emt 0:10:56]} Qe5 {[%emt 0:03:27]} 20. Ndf5 {[%emt 0:14:58]} Bxf5 {[%emt 0:04:29]} 21. Nxf5 {[%emt 0:03:06]} Re8 {[%emt 0:02:24]} 22. Qf3 {[%emt 0:04:12]} Qf6 {[%emt 0:06:57]} 23. Re1 {[%emt 0:07:32]} Re6 {[%emt 0:04:38]} 24. Rxe6 {[%emt 0:00:10]} Qe5 {[%emt 0:00:29]} 25. Re7 Ndxe7 {[%emt 0:09:28]} 26. Nxe7+ {[%emt 0:05:44]} Nxe7 {[%emt 0:02:22]} 27. Qe4 {[%emt 0:01:08]} Qxe4 {[%emt 0:00:50]} 28. Bxe4 {[%emt 0:00:05]} f5 {[%emt 0:00:38]} 29. Bd3 {[%emt 0:01:15]} Kf7 {[%emt 0:00:38]} 30. c4 {[%emt 0:01:07]} Bb6 {[%emt 0:00:17]} 31. Kf1 {[%emt 0:00:04]} Ke6 {[%emt 0:00:30]} 32. Bc3 {[%emt 0:00:30]} g6 {[%emt 0:02:11]} 33. Ke2 {[%emt 0:00:06]} Bc7 {[%emt 0:00:24]} 34. Ke3 {[%emt 0:01:59]} Be5 {[%emt 0:02:51]} 35. Bxa5 {[%emt 0:02:06]} Bxb2 {[%emt 0:00:06]} 36. a4 {[%emt 0:00:48]} Be5 {[%emt 0:00:13]} 37. Bb6 {[%emt 0:01:17]} Nc8 {[%emt 0:00:36]} 38. Bc5 {[%emt 0:00:54]} b6 {[%emt 0:03:19]} 39. Ba3 {[%emt 0:00:03]} c5 {[%emt 0:00:06]} 40. f4 {[%emt 0:03:48]} Bd4+ {[%emt 0:00:07]} 41. Kd2 {[%emt 0:00:04]} Nd6 {[%emt 0:00:24]} 42. Ke2 {[%emt 0:01:15]} Ne8 {[%emt 0:02:40]} 43. Bc1 {[%emt 0:01:14]} h5 {[%emt 0:05:15]} 44. Bd2 {[%emt 0:01:46]} Nf6 {[%emt 0:01:47]} 45. Kf3 {[%emt 0:00:26]} Kf7 {[%emt 0:00:40]} 46. a5 {[%emt 0:01:06]} bxa5 {[%emt 0:00:05]} 47. Bxa5 {[%emt 0:00:04]} Ke6 {[%emt 0:00:24]} 48. Bc2 {[%emt 0:00:49]} Ne8 {[%emt 0:00:53]} 49. Ba4 {[%emt 0:01:45]} Nd6 {[%emt 0:00:09]} 50. Ke2 {[%emt 0:00:36]} Ke7 {[%emt 0:02:47]} 51. Kd3 {[%emt 0:00:34]} Ne4 {[%emt 0:01:42]} 52. Bc6 {[%emt 0:01:03]} Nd6 {[%emt 0:01:48]} 53. Be1 {[%emt 0:00:53]} Ne8 {[%emt 0:00:55]} 54. Kc2 {[%emt 0:02:35]} Nf6 {[%emt 0:00:36]} 55. Kb3 {[%emt 0:00:27]} Be3 {[%emt 0:00:14]} 56. g3 {[%emt 0:02:03]} Kd6 {[%emt 0:01:56]} 57. Bf3 {[%emt 0:00:38]} h4 {[%emt 0:01:05]} 58. g4 {[%emt 0:00:29]} fxg4 {[%emt 0:02:42]} 59. hxg4 {[%emt 0:00:03]} Bxf4 {[%emt 0:00:06]} 60. Bxh4 {[%emt 0:00:03]} g5 {[%emt 0:02:22]} 61. Bf2 {[%emt 0:00:10]} Be5 {[%emt 0:00:52]} 62. Ka4 {[%emt 0:00:05]} Bd4 {[%emt 0:00:08]} 63. Bg3+ {[%emt 0:00:15]} Be5 {[%emt 0:00:07]} 64. Be1 {[%emt 0:00:23]} Ne8 {[%emt 0:04:56]} 65. Kb5 {[%emt 0:01:01]} Nc7+ {[%emt 0:00:03]} 66. Kb6 {[%emt 0:00:09]} Ne6 {[%emt 0:00:03]} 67. Be4 {[%emt 0:00:53]} Nd4 {[%emt 0:00:31]} 68. Bf2 {[%emt 0:00:35]} Ne6 {[%emt 0:00:10]} 69. Be1 {[%emt 0:01:20]} Nd4 {[%emt 0:00:09]} 70. Bd5 {[%emt 0:00:54]} Bf4 {[%emt 0:00:31]} 71. Bf2 {[%emt 0:00:29]} Be5 {[%emt 0:00:07]} 72. Be3 {[%emt 0:00:37]} Bf4 {[%emt 0:00:05]} 73. Bf2 {[%emt 0:00:21]} Be5 {[%emt 0:00:06]} 74. Be4 {[%emt 0:00:19]} Bf4 {[%emt 0:00:40]} 75. Bd3 {[%emt 0:00:55]} Be5 {[%emt 0:00:21]} 76. Kb7 {[%emt 0:00:17]} Bh2 {[%emt 0:00:36]} 77. Be1 {[%emt 0:00:42]} Kd7 {[%emt 0:02:32]} 78. Ba5 {[%emt 0:00:26]} Bd6 {[%emt 0:00:07]} 79. Be4 {[%emt 0:00:33]} Be7 {[%emt 0:00:10]} 80. Bd2 {[%emt 0:00:33]} Kd6 {[%emt 0:00:34]} 81. Bd5 {[%emt 0:00:29]} Bf6 {[%emt 0:00:41]} 82. Ba5 {[%emt 0:00:16]} Kd7 {[%emt 0:00:41]} 83. Bc7 {[%emt 0:00:33]} Be7 {[%emt 0:00:05]} 84. Be5 {[%emt 0:00:39]} Bd6 {[%emt 0:00:10]} 85. Bf6 {[%emt 0:00:23]} Be7 {[%emt 0:05:02]} 86. Bg7 {[%emt 0:00:13]} Bd6 {[%emt 0:00:24]} 87. Kb6 {[%emt 0:00:16]} Be7 {[%emt 0:00:27]} 88. Be5 {[%emt 0:00:19]} Bd6 {[%emt 0:00:05]} 89. Bf6 {[%emt 0:00:06]} Be7 {[%emt 0:01:30]} 90. Bxe7 {[%emt 0:00:24]} Kxe7 {[%emt 0:00:15]} 91. Kxc5 {[%emt 0:00:01]} Nc2 {[%emt 0:00:13]} 92. Bf3 {[%emt 0:00:34]} Ke6 {[%emt 0:00:13]} 93. Kb6 {[%emt 0:00:29]} Nd4 {[%emt 0:00:14]} 94. Bd1 {[%emt 0:00:35]} Kd7 {[%emt 0:01:06]} 95. Ba4+ {[%emt 0:00:46]} Kc8 {[%emt 0:00:09]} 96. Kc5 {[%emt 0:00:23]} Ne2 {[%emt 0:01:35]} 97. Kd6 {[%emt 0:00:21]} Ng3 {[%emt 0:01:21]} 98. Bc2 {[%emt 0:00:54]} Nf1 {[%emt 0:00:13]} 99. c5 {[%emt 0:00:28]} Ne3 {[%emt 0:00:05]} 100. Bb3 {[%emt 0:00:35]} 1-0

[Event "36th Indian-ch U13 Open 2023"]
[Site "Secunderabad"]
[Date "2023.12.08"]
[Round "8.3"]
[White "Venkat, Raghav"]
[Black "Banik Hrishikesh Kumar"]
[Result "*"]
[ECO "C54"]
[WhiteElo "2205"]
[BlackElo "1627"]
[Annotator "RC"]
[PlyCount "49"]
[EventDate "2023.12.04"]
[EventType "swiss"]
[EventCountry "IND"]
[SourceTitle "playchess.com"]
[Source "ChessBase"]
[SourceQuality "1"]
[TimeControl "5400+30"]

1. e4 {[%emt 0:00:16]} e5 {[%emt 0:00:15]} 2. Nf3 {[%emt 0:00:05]} Nc6 {[%emt 0:00:09]} 3. Bc4 {[%emt 0:00:05]} Bc5 {[%emt 0:00:10]} 4. c3 {[%emt 0:00:09]} Nf6 {[%emt 0:00:28]} 5. d3 {[%emt 0:00:05]} d6 {[%emt 0:00:09]} 6. O-O {[%emt 0:00:07]} O-O {[%emt 0:00:07]} 7. Re1 {[%emt 0:00:34]} a5 {[%emt 0:01:06]} 8. h3 {[%emt 0:00:06]} Be6 {[%emt 0:00:11]} 9. Bb5 {[%emt 0:01:30]} Ba7 {[%emt 0:00:10]} 10. Nbd2 {[%emt 0:09:02]} Ne7 {[%emt 0:00:12]} 11. Nf1 {[%emt 0:00:48]} Ng6 {[%emt 0:01:58]} 12. Ng3 {[%emt 0:00:45]} c6 {[%emt 0:09:35]} 13. Ba4 {[%emt 0:00:05]} d5 {[%emt 0:02:27]} 14. exd5 {[%emt 0:02:36]} Nxd5 {[%emt 0:01:15]} 15. Bc2 {[%emt 0:05:12]} Re8 {[%emt 0:06:10]} 16. d4 {[%emt 0:10:06]} exd4 {[%emt 0:04:01]} 17. Nxd4 {[%emt 0:02:37]} Bd7 {[%emt 0:01:20]} 18. Rxe8+ {[%emt 0:05:09]} Qxe8 {[%emt 0:00:52]} 19. Bd2 {[%emt 0:10:56]} Qe5 {[%emt 0:03:27]} 20. Ndf5 {[%emt 0:14:58]} Bxf5 {[%emt 0:04:29]} 21. Nxf5 {[%emt 0:03:06]} Re8 {[%emt 0:02:24]} 22. Qf3 {[%emt 0:04:12]} Qf6 {[%emt 0:06:57]} 23. Re1 {[%emt 0:07:32]} Re6 {[%emt 0:54:08]} 24. Re2 Rxe2 {[%emt 0:00:00]} 25. Be1 {[%emt 0:00:40]} *

[Event "36th Indian-ch U13 Open 2023"]
[Site "Secunderabad"]
[Date "2023.12.08"]
[Round "8.4"]
[White "Shenvi, Mohit"]
[Black "Vihaan Dumir"]
[Result "1/2-1/2"]
[ECO "B12"]
[WhiteElo "1940"]
[BlackElo "1798"]
[Annotator "RC"]
[PlyCount "60"]
[EventDate "2023.12.04"]
[EventType "swiss"]
[EventCountry "IND"]
[SourceTitle "playchess.com"]
[Source "ChessBase"]
[SourceQuality "1"]
[TimeControl "5400+30"]

1. e4 {[%emt 0:00:02]} c6 {[%emt 0:00:06]} 2. d4 {[%emt 0:00:13]} d5 {[%emt 0:00:05]} 3. e5 {[%emt 0:00:02]} c5 {[%emt 0:00:06]} 4. c3 {[%emt 0:00:05]} Nc6 {[%emt 0:00:04]} 5. Nf3 {[%emt 0:00:05]} cxd4 {[%emt 0:00:05]} 6. cxd4 {[%emt 0:00:04]} Bg4 {[%emt 0:00:07]} 7. Be3 {[%emt 0:02:12]} e6 {[%emt 0:00:26]} 8. Qb3 {[%emt 0:01:15]} Nge7 {[%emt 0:04:19]} 9. Be2 {[%emt 0:01:20]} Bxf3 {[%emt 0:12:00]} 10. Bxf3 {[%emt 0:00:49]} Nf5 {[%emt 0:00:28]} 11. Qxb7 {[%emt 0:19:38]} Ncxd4 {[%emt 0:02:38]} 12. Bd1 {[%emt 0:01:03]} Be7 {[%emt 0:11:08]} 13. Bxd4 {[%emt 0:01:09]} Nxd4 {[%emt 0:00:10]} 14. Ba4+ {[%emt 0:00:04]} Kf8 {[%emt 0:00:07]} 15. Nc3 {[%emt 0:00:28]} Qb8 {[%emt 0:02:09]} 16. Qxb8+ {[%emt 0:01:12]} Rxb8 {[%emt 0:00:06]} 17. O-O-O {[%emt 0:00:48]} Bc5 {[%emt 0:03:00]} 18. Rd3 {[%emt 0:01:10]} Ke7 {[%emt 0:10:21]} 19. a3 {[%emt 0:03:35]} Rhc8 {[%emt 0:10:36]} 20. b4 {[%emt 0:02:14]} Bb6 {[%emt 0:01:18]} 21. Kb2 {[%emt 0:01:05]} Rc4 {[%emt 0:04:30]} 22. f3 {[%emt 0:02:59]} Rbc8 {[%emt 0:00:41]} 23. Rhd1 {[%emt 0:01:14]} Nf5 {[%emt 0:01:27]} 24. Bb5 {[%emt 0:01:24]} R4c7 {[%emt 0:01:26]} 25. Ba6 {[%emt 0:02:33]} Rd8 {[%emt 0:03:44]} 26. Kb3 {[%emt 0:02:17]} Ne3 {[%emt 0:01:22]} 27. R1d2 {[%emt 0:00:50]} Nc4 {[%emt 0:00:17]} 28. Re2 {[%emt 0:00:37]} Rb8 {[%emt 0:11:58]} 29. f4 {[%emt 0:07:50]} Na5+ {[%emt 0:02:25]} 30. Kb2 {[%emt 0:01:32]} Nc4+ {[%emt 0:01:22]} 1/2-1/2

[Event "36th Indian-ch U13 Open 2023"]
[Site "Secunderabad"]
[Date "2023.12.08"]
[Round "8.5"]
[White "Vatsal Singla"]
[Black "Sushanth Vaman Shetty"]
[Result "1/2-1/2"]
[ECO "C01"]
[WhiteElo "1714"]
[BlackElo "1620"]
[Annotator "NA RC"]
[PlyCount "136"]
[EventDate "2023.12.04"]
[EventType "swiss"]
[EventCountry "IND"]
[SourceTitle "playchess.com"]
[Source "ChessBase"]
[SourceQuality "1"]
[TimeControl "5400+30"]

1. e4 {[%emt 0:00:02]} e6 {[%emt 0:00:08]} 2. d4 {[%emt 0:00:03]} d5 {[%emt 0:00:04]} 3. Nc3 {[%emt 0:00:04]} Bb4 {[%emt 0:00:05]} 4. exd5 {[%emt 0:00:06]} exd5 {[%emt 0:00:33]} 5. Bd3 {[%emt 0:00:18]} Be6 {[%emt 0:00:24]} 6. Nge2 {[%emt 0:00:24]} Nf6 {[%emt 0:00:42]} 7. O-O {[%emt 0:02:13]} O-O {[%emt 0:00:07]} 8. Bg5 {[%emt 0:02:59]} h6 {[%emt 0:01:17]} 9. Bh4 {[%emt 0:02:07]} Bd6 {[%emt 0:00:46]} 10. Kh1 {[%emt 0:08:51]} c6 {[%emt 0:01:39]} 11. f4 {[%emt 0:06:39]} Bg4 {[%emt 0:00:23]} 12. h3 {[%emt 0:00:38]} Bxe2 {[%emt 0:00:21]} 13. Nxe2 {[%emt 0:02:01]} Nbd7 {[%emt 0:00:44]} 14. Ng3 {[%emt 0:07:13]} Qc7 {[%emt 0:02:09]} 15. Qf3 {[%emt 0:09:27]} g6 {[%emt 0:00:42]} 16. c4 {[%emt 0:14:29]} dxc4 {[%emt 0:03:00]} 17. Bxc4 {[%emt 0:00:02]} Kg7 {[%emt 0:00:19]} 18. Ne4 {[%emt 0:03:46]} Nxe4 {[%emt 0:01:28]} 19. Qxe4 {[%emt 0:00:02]} Rae8 {[%emt 0:00:11]} 20. Qf3 {[%emt 0:00:51]} Nb6 {[%emt 0:02:10]} 21. Bb3 {[%emt 0:03:17]} Be7 {[%emt 0:00:32]} 22. Bxe7 {[%emt 0:12:21]} Qxe7 {[%emt 0:00:57]} 23. f5 {[%emt 0:00:20]} Nd7 {[%emt 0:00:29]} 24. d5 {[%emt 0:00:47]} cxd5 {[%emt 0:01:23]} 25. Bxd5 {[%emt 0:00:45]} b6 {[%emt 0:00:26]} 26. Rf2 {[%emt 0:02:48]} Nf6 {[%emt 0:00:39]} 27. Bc6 {[%emt 0:01:34]} Rd8 {[%emt 0:01:19]} 28. fxg6 {[%emt 0:00:58]} fxg6 {[%emt 0:00:07]} 29. Raf1 {[%emt 0:00:35]} Qc5 {[%emt 0:01:42]} 30. Ba4 {[%emt 0:05:16]} Qd5 {[%emt 0:05:43]} 31. Qxd5 {[%emt 0:01:23]} Nxd5 {[%emt 0:00:07]} 32. Rxf8 {[%emt 0:01:11]} Rxf8 {[%emt 0:00:10]} 33. Rd1 {[%emt 0:00:05]} Nf6 {[%emt 0:00:24]} 34. Rc1 {[%emt 0:02:23]} Rf7 {[%emt 0:00:33]} 35. Rc8 {[%emt 0:00:13]} Rf8 {[%emt 0:00:24]} 36. Rc7+ {[%emt 0:01:47]} Rf7 {[%emt 0:00:02]} 37. Rc8 {[%emt 0:00:00]} Re7 {[%emt 0:00:32]} 38. Bb3 {[%emt 0:00:00]} Ne4 {[%emt 0:00:18]} 39. Bc2 {[%emt 0:01:08]} Nf6 {[%emt 0:02:06]} 40. Kg1 {[%emt 0:01:22]} g5 {[%emt 0:02:16]} 41. Bb3 {[%emt 0:01:22]} Ne4 {[%emt 0:01:11]} 42. Rc6 {[%emt 0:01:24]} Nc5 {[%emt 0:00:38]} 43. Bc4 {[%emt 0:00:56]} Re1+ {[%emt 0:00:43]} 44. Kh2 {[%emt 0:00:29]} Re7 {[%emt 0:00:38]} 45. b3 {[%emt 0:00:56]} Ne4 {[%emt 0:00:53]} 46. Kg1 {[%emt 0:01:02]} Nf6 {[%emt 0:00:49]} 47. Be6 {[%emt 0:01:38]} Ne8 {[%emt 0:00:46]} 48. Kf2 {[%emt 0:00:32]} Rc7 {[%emt 0:00:43]} 49. Bd5 {[%emt 0:02:49]} Rd7 {[%emt 0:00:07]} 50. Be4 {[%emt 0:00:16]} Nf6 {[%emt 0:00:28]} 51. Bc2 {[%emt 0:00:11]} Rd2+ {[%emt 0:00:05]} 52. Kf3 {[%emt 0:00:07]} Nd5 {[%emt 0:00:18]} 53. Rg6+ {[%emt 0:01:20]} Kf7 {[%emt 0:00:06]} 54. Be4 {[%emt 0:00:35]} Nf6 {[%emt 0:00:06]} 55. Rxh6 {[%emt 0:00:34]} Rxa2 {[%emt 0:00:11]} 56. Bd3 {[%emt 0:01:02]} Rb2 {[%emt 0:00:24]} 57. Rh8 {[%emt 0:01:00]} Rxb3 {[%emt 0:00:08]} 58. Ke3 {[%emt 0:01:29]} Kg7 {[%emt 0:00:28]} 59. Ra8 {[%emt 0:00:21]} Ra3 {[%emt 0:00:59]} 60. Kd4 {[%emt 0:00:23]} Nd7 {[%emt 0:01:05]} 61. Bc4 {[%emt 0:00:47]} Ra4 {[%emt 0:00:46]} 62. Kd5 {[%emt 0:00:53]} Nf6+ {[%emt 0:00:04]} 63. Ke6 {[%emt 0:00:46]} Rxc4 {[%emt 0:00:04]} 64. Rxa7+ {[%emt 0:00:05]} Kg6 {[%emt 0:00:05]} 65. Rb7 {[%emt 0:00:22]} Rb4 {[%emt 0:00:09]} 66. Ke5 {[%emt 0:00:43]} Rb5+ {[%emt 0:00:33]} 67. Kd6 {[%emt 0:00:10]} Rb2 {[%emt 0:00:05]} 68. Ke5 {[%emt 0:00:16]} Re2+ {[%emt 0:00:24]} 1/2-1/2

[Event "36th Indian-ch U13 Open 2023"]
[Site "Secunderabad"]
[Date "2023.12.08"]
[Round "8.6"]
[White "Gaikwad Manas"]
[Black "Darshan, V P S"]
[Result "1-0"]
[ECO "B33"]
[WhiteElo "1916"]
[BlackElo "1670"]
[Annotator "RC"]
[PlyCount "103"]
[EventDate "2023.12.04"]
[EventType "swiss"]
[EventCountry "IND"]
[SourceTitle "playchess.com"]
[Source "ChessBase"]
[SourceQuality "1"]
[TimeControl "5400+30"]

1. e4 {[%emt 0:00:11]} c5 {[%emt 0:00:18]} 2. Nf3 {[%emt 0:00:05]} Nc6 {[%emt 0:00:05]} 3. d4 {[%emt 0:00:03]} cxd4 {[%emt 0:00:13]} 4. Nxd4 {[%emt 0:00:07]} Nf6 {[%emt 0:00:44]} 5. Nc3 {[%emt 0:00:11]} e5 {[%emt 0:00:11]} 6. Ndb5 {[%emt 0:00:05]} d6 {[%emt 0:00:05]} 7. Bg5 {[%emt 0:00:04]} a6 {[%emt 0:00:12]} 8. Bxf6 {[%emt 0:00:29]} gxf6 {[%emt 0:00:10]} 9. Na3 {[%emt 0:00:04]} b5 {[%emt 0:00:06]} 10. Nd5 {[%emt 0:00:05]} Bg7 {[%emt 0:00:10]} 11. c3 {[%emt 0:01:40]} f5 {[%emt 0:00:16]} 12. exf5 {[%emt 0:06:20]} Bxf5 {[%emt 0:00:10]} 13. Nc2 {[%emt 0:00:08]} O-O {[%emt 0:00:06]} 14. Nce3 {[%emt 0:02:28]} Be6 {[%emt 0:01:47]} 15. g3 {[%emt 0:02:27]} f5 {[%emt 0:05:33]} 16. Bg2 {[%emt 0:00:41]} Ra7 {[%emt 0:00:05]} 17. Qh5 {[%emt 0:06:38]} Raf7 {[%emt 0:01:14]} 18. O-O {[%emt 0:02:01]} f4 {[%emt 0:09:16]} 19. Be4 {[%emt 0:01:47]} Bh8 {[%emt 0:03:55]} 20. Ng4 {[%emt 0:21:37]} Bxg4 {[%emt 0:03:34]} 21. Qxg4+ {[%emt 0:00:04]} Rg7 {[%emt 0:03:17]} 22. Qe6+ {[%emt 0:01:19]} Rff7 {[%emt 0:02:15]} 23. Nf6+ {[%emt 0:17:24]} Kf8 {[%emt 0:06:17]} 24. Nh5 {[%emt 0:00:50]} Ne7 {[%emt 0:08:49]} 25. Nxg7 {[%emt 0:00:37]} Bxg7 {[%emt 0:00:14]} 26. Rad1 {[%emt 0:00:57]} Rf6 {[%emt 0:02:34]} 27. Qxe5 {[%emt 0:00:23]} fxg3 {[%emt 0:00:54]} 28. fxg3 {[%emt 0:01:49]} Qb6+ {[%emt 0:01:41]} 29. Qd4 {[%emt 0:00:09]} Qxd4+ {[%emt 0:50:49]} 30. cxd4 {[%emt 0:00:04]} h6 {[%emt 0:00:00]} 31. d5 {[%emt 0:02:52]} Ke8 {[%emt 0:00:00]} 32. b3 {[%emt 0:01:32]} b4 {[%emt 0:00:00]} 33. h4 {[%emt 0:00:21]} a5 {[%emt 0:00:00]} 34. g4 {[%emt 0:00:10]} Kf7 {[%emt 0:00:00]} 35. g5 {[%emt 0:00:14]} Rf3 {[%emt 0:03:00]} 36. Rf2 Rxf2 {[%emt 0:00:00]} 37. Re1 {[%emt 0:33:04]} Rf1+ 38. Rxf1+ {[%emt 0:00:00]} Ke8 {[%emt 0:00:00]} 39. g6 {[%emt 0:00:00]} Ng8 {[%emt 0:00:00]} 40. Rf7 {[%emt 0:00:00]} Bf6 {[%emt 0:00:00]} 41. Bd3 {[%emt 0:00:00]} Bd4+ {[%emt 0:00:00]} 42. Kg2 {[%emt 0:00:00]} Ne7 {[%emt 0:00:00]} 43. Bb5+ {[%emt 0:00:00]} Kd8 {[%emt 0:00:00]} 44. g7 {[%emt 0:00:00]} Bxg7 {[%emt 0:00:00]} 45. Rxg7 {[%emt 0:00:00]} Nxd5 {[%emt 0:00:00]} 46. Rd7+ {[%emt 0:04:30]} Kc8 {[%emt 0:00:00]} 47. Rxd6 {[%emt 0:00:00]} Nc3 {[%emt 0:00:00]} 48. Bc4 {[%emt 0:00:00]} Nxa2 {[%emt 0:00:00]} 49. Rxh6 {[%emt 0:00:00]} Nc1 {[%emt 0:00:00]} 50. Rg6 {[%emt 0:00:00]} Na2 {[%emt 0:00:00]} 51. h5 {[%emt 0:00:00]} Nc3 {[%emt 0:00:00]} 52. h6 {[%emt 0:00:00]} 1-0

[Event "36th Indian-ch U13 Open 2023"]
[Site "Secunderabad"]
[Date "2023.12.08"]
[Round "8.7"]
[White "Sriram Adarsh Uppala"]
[Black "Aadik Theophane Lenin"]
[Result "1-0"]
[ECO "C10"]
[WhiteElo "1902"]
[BlackElo "1645"]
[Annotator "RC"]
[PlyCount "85"]
[EventDate "2023.12.04"]
[EventType "swiss"]
[EventCountry "IND"]
[SourceTitle "playchess.com"]
[Source "ChessBase"]
[SourceQuality "1"]
[TimeControl "5400+30"]

1. Nc3 {[%emt 0:00:01]} d5 {[%emt 0:00:43]} 2. e4 {[%emt 0:00:04]} dxe4 {[%emt 0:02:58]} 3. Nxe4 {[%emt 0:00:06]} Nd7 {[%emt 0:02:24]} 4. d4 {[%emt 0:01:45]} Ngf6 {[%emt 0:01:06]} 5. Nxf6+ {[%emt 0:00:43]} Nxf6 {[%emt 0:00:27]} 6. Nf3 {[%emt 0:00:56]} e6 {[%emt 0:03:48]} 7. Be3 {[%emt 0:02:01]} Be7 {[%emt 0:10:11]} 8. g3 {[%emt 0:05:19]} b6 {[%emt 0:10:03]} 9. Bg2 {[%emt 0:03:18]} Bb7 {[%emt 1:03:20]} 10. O-O {[%emt 0:01:23]} O-O {[%emt 0:00:00]} 11. Ne5 {[%emt 0:04:42]} Bxg2 {[%emt 0:00:00]} 12. Kxg2 {[%emt 0:00:08]} Qd5+ {[%emt 0:00:00]} 13. Qf3 {[%emt 0:00:26]} c5 {[%emt 0:00:00]} 14. c4 {[%emt 0:02:06]} Qxf3+ {[%emt 0:00:00]} 15. Kxf3 {[%emt 0:02:08]} Rac8 {[%emt 0:00:00]} 16. Rfd1 {[%emt 0:02:52]} cxd4 {[%emt 0:00:00]} 17. Rxd4 {[%emt 0:01:35]} Bc5 {[%emt 0:00:00]} 18. Rd3 {[%emt 0:00:59]} Bxe3 {[%emt 0:00:00]} 19. Kxe3 {[%emt 0:00:14]} Rfd8 {[%emt 0:00:00]} 20. Rad1 {[%emt 0:03:38]} Rxd3+ {[%emt 0:00:00]} 21. Rxd3 {[%emt 0:00:08]} Kf8 {[%emt 0:00:00]} 22. b4 {[%emt 0:02:00]} b5 {[%emt 0:00:00]} 23. cxb5 {[%emt 0:05:48]} Nd5+ {[%emt 0:00:00]} 24. Kd4 {[%emt 0:00:09]} Nxb4 {[%emt 0:00:00]} 25. Rb3 {[%emt 0:00:05]} Nxa2 {[%emt 0:00:00]} 26. Ra3 {[%emt 0:00:11]} Nb4 {[%emt 0:00:00]} 27. Rxa7 {[%emt 0:00:11]} f6 {[%emt 0:00:00]} 28. Nd7+ {[%emt 0:03:00]} Ke8 {[%emt 0:00:00]} 29. Nb6 {[%emt 0:00:24]} e5+ {[%emt 0:00:00]} 30. Ke4 {[%emt 0:00:07]} Rb8 {[%emt 0:02:09]} 31. Nc4 {[%emt 0:00:08]} Kf8 {[%emt 0:00:15]} 32. b6 {[%emt 0:00:54]} Nc6 {[%emt 0:00:37]} 33. Rc7 {[%emt 0:00:14]} Ne7 {[%emt 0:00:54]} 34. b7 {[%emt 0:01:13]} Ke8 {[%emt 0:00:18]} 35. Na5 {[%emt 0:00:03]} Kd8 {[%emt 0:02:10]} 36. Rxe7 {[%emt 0:00:09]} Kxe7 {[%emt 0:00:03]} 37. Nc6+ {[%emt 0:00:06]} Kd6 {[%emt 0:00:03]} 38. Nxb8 {[%emt 0:00:06]} Kc7 {[%emt 0:00:03]} 39. Nc6 {[%emt 0:00:08]} Kxb7 {[%emt 0:00:04]} 40. Nxe5 {[%emt 0:00:05]} fxe5 {[%emt 0:00:04]} 41. Kxe5 {[%emt 0:00:04]} Kc7 {[%emt 0:00:04]} 42. Ke6 {[%emt 0:00:03]} Kd8 {[%emt 0:00:04]} 43. Kf7 {[%emt 0:00:04]} 1-0